fUST/lending_fUST_20250606
["ID","MTS","AMOUNT","RATE_DAILY","PERIOD"]
[364606201,1749159038791,-346.78820253,0.000229,8]
[364606203,1749159038801,-346.78820248,0.00022969,8]
[364606205,1749159038810,-590.25197022,0.00023,20]
[364606207,1749159038819,-346.78820248,0.00023038,8]
[364606209,1749159038829,-440.0,0.00023043,2]
[364606211,1749159038837,-440.0,0.00023043,2]
[364606213,1749159038847,-440.0,0.00023043,2]
[364606214,1749159038856,-440.0,0.00023043,2]
[364606217,1749159038866,-302.16,0.00023043,2]
[364606218,1749159038876,-440.0,0.00023043,2]
[364606220,1749159038885,-346.78820248,0.00023107,8]
[364606222,1749159038895,-215.0738,0.00023146,2]
[364606224,1749159038905,-346.78820248,0.00023176,8]
[364606226,1749159038914,-346.78820248,0.00023245,8]
[364606228,1749159038924,-346.78820248,0.00023314,9]
[364606230,1749159038933,-440.0,0.00023317,2]
[364606232,1749159038943,-440.0,0.00023317,2]
[364606234,1749159038953,-440.0,0.00023317,2]
[364606236,1749159038962,-600.0,0.00023332,2]
[364606238,1749159038971,-346.78820248,0.00023383,9]
[364606240,1749159038980,-346.78820248,0.00023452,9]
[364606242,1749159038990,-1002.11898737,0.000235,2]
[364606243,1749159039000,-213.84497651,0.000235,2]
[364606244,1749159039010,-479.5,0.00023511,10]
[364606245,1749159039020,-346.78820248,0.00023521,9]
[364606246,1749159039029,-877.50976417,0.00023575,2]
[364606247,1749159039039,-272.40314328,0.00023586,2]
[364606248,1749159039049,-346.78820248,0.0002359,9]
[364606249,1749159039058,-360.0,0.00023591,2]
[364606250,1749159039068,-440.0,0.00023591,2]
[364606251,1749159039078,-440.0,0.00023591,2]
[364606252,1749159039087,-575.4,0.00023603,10]
[364606253,1749159039096,-25358.68236398,0.00023613,7]
[364606254,1749159039106,-346.78820248,0.00023659,9]
[364606255,1749159039117,-1021.08,0.000237,7]
[364606256,1749159039126,-346.78820248,0.00023728,9]
[364606257,1749159039135,-346.78820248,0.00023797,9]
[364606258,1749159039146,-440.0,0.00023798,2]
[364606259,1749159039155,-440.0,0.00023799,2]
[364606260,1749159039165,-440.0,0.00023799,2]
[364606261,1749159039175,-252997.53232962,0.000238,3]
[364606262,1749159039186,-229.48950782,0.000238,3]
[364606263,1749159039199,-160.0,0.000238,3]
[364606264,1749159039209,-166356.23,0.000238,7]
[364606265,1749159039219,-622.436136,0.00023817,3]
[364606266,1749159039228,-440.0,0.00023865,2]
[364606267,1749159039238,-267.02964554,0.00023865,2]
[364606268,1749159039247,-346.78820248,0.00023866,10]
[364606269,1749159039257,-346.78820248,0.00023934,10]
[364606270,1749159039267,-10549.7246697,0.00023995,2]
[364606271,1749159039276,-1094.82,0.00024,2]
[364606272,1749159039285,-229.48950782,0.00024,7]
[364606273,1749159039295,-346.78820248,0.00024003,10]
[364606274,1749159039304,-158.8334,0.00024056,2]
[364606275,1749159039313,-440.0,0.00024072,2]
[364606276,1749159039323,-346.78820248,0.00024072,10]
[364606277,1749159039333,-252.1914975,0.00024073,2]
[364606278,1749159039342,-440.0,0.00024073,2]
[364606279,1749159039353,-412.84,0.00024139,2]
[364606280,1749159039362,-346.78820248,0.00024141,10]
[364606281,1749159039372,-346.78820248,0.0002421,10]
[364606282,1749159039382,-405.0,0.00024233,2]
[364606283,1749159039391,-346.78820248,0.00024279,10]
[364606284,1749159039401,-158.8334,0.00024291,7]
[364606285,1749159039411,-201.95661036,0.00024299,30]
[364606286,1749159039420,-2000.0,0.000243,2]
[364606287,1749159039429,-2000.0,0.000243,2]
[364606288,1749159039439,-151.0,0.000243,6]
[364606289,1749159039448,-292.8,0.000243,2]
[364606290,1749159039458,-158.5442955,0.00024301,2]
[364606291,1749159039468,-572.6068135,0.00024301,2]
[364606292,1749159039477,-158.8334,0.00024302,30]
[364606293,1749159039486,-12675.11581177,0.00024302,30]
[364606294,1749159039496,-315.01552021,0.00024302,30]
[364606295,1749159039505,-500.0,0.00024303,2]
[364606296,1749159039514,-1000.0,0.00024303,2]
[364606297,1749159039524,-1000.0,0.00024303,4]
[364606298,1749159039533,-1000.0,0.00024303,6]
[364606299,1749159039542,-1000.0,0.00024303,8]
[364606300,1749159039552,-1000.0,0.00024303,10]
[364606301,1749159039561,-12675.11581177,0.00024304,7]
[364606302,1749159039571,-160.0,0.00024304,7]
[364606303,1749159039581,-151.0,0.00024304,7]
[364606304,1749159039598,-151.0,0.00024304,7]
[364606305,1749159039608,-151.0,0.00024304,7]
[364606306,1749159039617,-202.205927,0.00024304,7]
[364606307,1749159039627,-437.351281,0.00024304,7]
[364606308,1749159039637,-437.351281,0.00024304,7]
[364606309,1749159039646,-437.351281,0.00024304,7]
[364606311,1749159039655,-437.351281,0.00024304,7]
[364606313,1749159039664,-437.351281,0.00024304,7]
[364606315,1749159039676,-437.351281,0.00024304,7]
[364606317,1749159039685,-437.351281,0.00024304,7]
[364606319,1749159039694,-437.351281,0.00024304,7]
[364606321,1749159039703,-437.351281,0.00024304,7]
[364606323,1749159039713,-437.351281,0.00024304,7]
[364606325,1749159039722,-437.351281,0.00024304,7]
[364606326,1749159039732,-437.351281,0.00024304,7]
[364606327,1749159039741,-437.351281,0.00024304,7]
[364606328,1749159039750,-437.351281,0.00024304,7]
[364606329,1749159039759,-437.351281,0.00024304,7]
[364606330,1749159039768,-437.351281,0.00024304,7]
[364606331,1749159039778,-437.351281,0.00024304,7]
[364606332,1749159039787,-437.351281,0.00024304,7]
[364606333,1749159039797,-437.351281,0.00024304,7]
[364606334,1749159039806,-437.351285,0.00024304,7]
[364606335,1749159039816,-151.0,0.00024304,7]
[364606336,1749159039826,-151.0,0.00024304,7]
[364606337,1749159039835,-260.344866,0.00024304,7]
[364606338,1749159039845,-151.0,0.00024304,7]
[364606339,1749159039855,-151.0,0.00024304,7]
[364606340,1749159039865,-151.0,0.00024304,7]
[364606341,1749159039874,-217.28055,0.00024304,7]
[364606342,1749159039884,-151.0,0.00024304,7]
[364606343,1749159039894,-250.0,0.00024304,7]
[364606344,1749159039904,-250.0,0.00024304,7]
[364606345,1749159039913,-250.0,0.00024304,7]
[364606346,1749159039924,-250.0,0.00024304,7]
[364606347,1749159039934,-250.0,0.00024304,7]
[364606348,1749159039943,-250.0,0.00024304,7]
[364606349,1749159039953,-250.0,0.00024304,7]
[364606351,1749159039962,-250.0,0.00024304,7]
[364606353,1749159039971,-250.0,0.00024304,7]
[364606355,1749159039980,-250.0,0.00024304,7]
[364606357,1749159039990,-151.0,0.00024304,7]
[364606359,1749159039999,-151.0,0.00024304,7]
[364606361,1749159040009,-250.0,0.00024304,7]
[364606363,1749159040019,-250.0,0.00024304,7]
[364606366,1749159040028,-151.0,0.00024304,7]
[364606369,1749159040038,-250.0,0.00024304,7]
[364606371,1749159040048,-228.338956,0.00024304,7]
[364606373,1749159040057,-250.0,0.00024304,7]
[364606374,1749159040066,-250.0,0.00024304,7]
[364606376,1749159040075,-250.0,0.00024304,7]
[364606377,1749159040084,-250.0,0.00024304,7]
[364606378,1749159040093,-250.0,0.00024304,7]
[364606379,1749159040103,-250.0,0.00024304,7]
[364606380,1749159040111,-250.0,0.00024304,7]
[364606381,1749159040120,-176.674489,0.00024304,7]
[364606382,1749159040129,-151.0,0.00024304,7]
[364606383,1749159040138,-151.0,0.00024304,7]
[364606384,1749159040147,-151.0,0.00024304,7]
[364606385,1749159040156,-151.0,0.00024304,7]
[364606386,1749159040164,-151.0,0.00024304,7]
[364606387,1749159040173,-244.280696,0.00024304,7]
[364606388,1749159040183,-151.0,0.00024304,7]
[364606389,1749159040192,-151.0,0.00024304,7]
[364606390,1749159040200,-151.0,0.00024304,7]
[364606391,1749159040209,-158.8334,0.00024304,7]
[364606392,1749159040218,-229.48950782,0.00024304,7]
[364606393,1749159040227,-200.0,0.00024306,7]
[364606395,1749159040235,-500.0,0.00024307,2]
[364606396,1749159040244,-567.17126323,0.00024307,2]
[364606397,1749159040253,-500.0,0.00024307,2]
[364606398,1749159040262,-404.78485811,0.00024307,2]
[364606399,1749159040271,-510.49767918,0.00024307,2]
[364606400,1749159040279,-598.84238107,0.00024307,2]
[364606401,1749159040288,-1632849.78820278,0.00024308,20]
[364606402,1749159040302,-576468.99422746,0.00024308,20]
[364606403,1749159040311,-939339.53260236,0.00024308,20]
[364606405,1749159040321,-256140.35364004,0.00024308,20]
[364606407,1749159040330,-3445.74804388,0.00024308,3]
[364606409,1749159040339,-8569.25820022,0.00024308,14]
[364606411,1749159040348,-10000.0,0.00024308,2]
[364606413,1749159040357,-2211244.19315258,0.00024308,20]
[364606415,1749159040369,-52980.26079721,0.00024308,20]
[364606417,1749159040380,-235838.93032664,0.00024308,20]
[364606462,1749159040806,-1066.48342827,0.00024308,20]
[364606795,1749159044819,-440.0,0.00021781,2]
[364606797,1749159044829,-1242.14,0.00024,2]
[364606799,1749159044838,-695.849,0.00024031,2]
[364606801,1749159044848,-423.052,0.00024031,2]
[364606803,1749159044857,-399.58,0.00024298,10]
[364606805,1749159044867,-586360.41280743,0.00024308,20]
[364606807,1749159044876,-278437.96053845,0.00024308,20]
[364606808,1749159044885,-555564.40843304,0.00024308,20]
[364606809,1749159044903,-440.0,0.00022055,2]
[364606810,1749159044913,-5478.70911132,0.00024308,20]
[364606811,1749159044924,-166898.59748279,0.00024308,20]
[364606980,1749159046903,-440.0,0.00022329,2]
[364606983,1749159046913,-394.19661161,0.00022603,2]
[364609831,1749159091041,200.0,0.00023222,120]
[364609832,1749159126455,1759.99999999,0.00024658,120]
[364609833,1749159140022,1320.0,0.00024658,120]
[364609834,1749159147493,880.0,0.00024658,120]
[364609835,1749159150967,200.0,0.00023272,120]
[364609837,1749159160226,1760.0,0.00024658,120]
[364609838,1749159176134,325.46,0.00024658,120]
[364609840,1749159330981,200.0,0.00024053,120]
[364609842,1749159390980,200.0,0.0002379,120]
[364609846,1749159520515,199.735643,0.00022584,120]
[364609847,1749159562045,165.396631,0.00013699,2]
[364609849,1749159571412,200.0,0.00024089,120]
[364609850,1749159626300,-165.396631,0.00020187,2]
[364609851,1749159626322,-21.95240545,0.00021777,2]
[364609852,1749159629904,-185.44759455,0.00021777,2]
[364609853,1749159629926,-57.52084437,0.00021781,2]
[364609854,1749159630989,200.0,0.00024211,120]
[364609855,1749159632312,-335.09127445,0.00021781,2]
[364609856,1749159635025,-47.38788118,0.00021781,2]
[364609857,1749159635050,-183.64465805,0.00021781,2]
[364609858,1749159636693,-256.35534195,0.00021781,2]
[364609859,1749159636718,-258.55520364,0.00021781,2]
[364609860,1749159638339,-223.13683407,0.00021781,2]
[364609861,1749159640526,-183.43796229,0.00021781,2]
[364609862,1749159640681,-50.27061709,0.00021789,2]
[364609863,1749159642354,-109.72938291,0.00021789,2]
[364609864,1749159642378,-53.04491888,0.00021789,2]
[364609865,1749159644141,-246.95508112,0.00021789,2]
[364609866,1749159644166,-133.75061739,0.00021789,2]
[364609867,1749159646116,-207.46501073,0.00021789,2]
[364609868,1749159670504,-436.62784084,0.00020488,2]
[364609869,1749159672771,-163.37215916,0.00020488,2]
[364609870,1749159672796,-95.45438256,0.00021781,2]
[364609871,1749159675252,-159.02402088,0.00021781,2]
[364609872,1749159678025,-185.52159656,0.00021781,2]
[364609873,1749159678049,-16.33395128,0.00021789,2]
[364609874,1749159681030,-195.08886055,0.00021789,2]
[364609875,1749159684226,-179.90955412,0.00021789,2]
[364609876,1749159689464,-155.3670742,0.00021789,2]
[364609877,1749159691686,-276.49783186,0.00021789,2]
[364609878,1749159693982,-35.58709987,0.00021789,2]
[364609879,1749159694006,-264.41290013,0.00021789,2]
[364609880,1749159695721,-22.58709987,0.00021789,2]
[364609881,1749159695743,-224.0,0.00021789,2]
[364609882,1749159695765,-26.24347886,0.00021789,2]
[364609883,1749159698536,-133.75652114,0.00021789,2]
[364609884,1749159698558,-184.93539922,0.0002179,2]
[364609885,1749159725405,-158.96908279,0.0002179,2]
[364609886,1749159728968,-96.09551799,0.0002179,2]
[364609887,1749159728992,-82.0490909,0.0002179,2]
[364609888,1749159732569,-164.17030852,0.0002179,2]
[364609889,1749159736301,-89.90418358,0.0002179,2]
[364609890,1749159736324,-110.16444299,0.0002179,2]
[364609891,1749159738115,-164.58,0.0002179,2]
[364609892,1749159740985,-117.39309129,0.0002179,2]
[364609893,1749159741008,-152.73424798,0.0002179,2]
[364609894,1749159743429,-154.47117081,0.0002179,2]
[364609895,1749159747091,-132.79458121,0.0002179,2]
[364609896,1749159747115,-57.05842321,0.0002179,2]
[364609897,1749159749253,-153.56906213,0.0002179,2]
[364609898,1749159750993,-209.37251466,0.0002179,2]
[364609899,1749159751016,-40.73065098,0.0002179,2]
[364609900,1749159753782,-262.29171518,0.0002179,2]
[364609901,1749159755705,-136.97763384,0.0002179,2]
[364609902,1749159755731,-124.28837212,0.0002179,2]
[364609903,1749159758363,-263.78878398,0.0002179,2]
[364609904,1749159760834,-51.9228439,0.0002179,2]
[364609905,1749159760860,-104.71604175,0.0002179,2]
[364609906,1749159763193,-157.90957491,0.0002179,2]
[364609907,1749159766894,-177.37438334,0.0002179,2]
[364609908,1749159766917,-124.34683485,0.0002179,2]
[364609909,1749159768683,-173.52088538,0.0002179,2]
[364609910,1749159771085,-142.13227977,0.0002179,2]
[364609911,1749159771108,-49.58562632,0.0002179,2]
[364609912,1749159775281,-165.5994632,0.0002179,2]
[364609913,1749159800531,-432.0,0.00021734,2]
[364609914,1749159804294,-103.609765,0.00021734,2]
[364609915,1749159804318,-63.737961,0.0002179,2]
[364609916,1749159808551,-161.07694948,0.0002179,2]
[364609917,1749159808582,-43.04778214,0.0002179,2]
[364609918,1749159811499,-255.11607998,0.0002179,2]
[364609919,1749159813275,-141.83613788,0.0002179,2]
[364609920,1749159813305,-14.42222973,0.0002179,2]
[364609921,1749159815134,-151.98457739,0.0002179,2]
[364609922,1749159817410,-262.40209256,0.0002179,2]
[364609923,1749159819179,-11.19110032,0.0002179,2]
[364609924,1749159819207,-295.63370677,0.0002179,2]
[364609925,1749159822435,-144.36629323,0.0002179,2]
[364609926,1749159822459,-23.2649494,0.0002179,2]
[364609927,1749159824604,-131.7350506,0.0002179,2]
[364609929,1749159824629,-25.68088506,0.0002179,2]
[364609930,1749159827609,-134.31911494,0.0002179,2]
[364609932,1749159884260,-224.536575,0.00021734,2]
[364609934,1749159886498,-181.86573826,0.00021734,2]
[364609935,1749159888907,-224.06246272,0.00021734,2]
[364609936,1749159893549,-342.45150672,0.00021734,2]
[364609937,1749159897562,-299.83562182,0.00021734,2]
[364609938,1749159899908,-219.83982454,0.00021734,2]
[364609939,1749159902471,-239.91861245,0.00021734,2]
[364609940,1749159903165,3706.20801001,0.0001552,2]
[364609941,1749159904822,-188.41772303,0.00021734,2]
[364609942,1749159906961,-304.58858504,0.00021734,2]
[364609943,1749159909406,-212.0045471,0.00021734,2]
[364609944,1749159911635,-153.010433,0.00021734,2]
[364609945,1749159913869,-233.52,0.00021734,2]
[364609946,1749159940094,-150.20675691,0.00021734,2]
[364609948,1749160034093,-300.0,0.00021733,2]
[364609949,1749160034115,-135.60081844,0.00021734,2]
[364609950,1749160034145,-1140.76042306,0.00021734,2]
[364609951,1749160051149,-1228.93532421,0.00021734,2]
[364609952,1749160088729,21597.3348172,0.00024657,120]
[364609955,1749160169107,-160.0,0.00021733,2]
[364609956,1749160169131,-757.54266342,0.00021734,2]
[364609958,1749160203141,4199.21431808,0.0001552,2]
[364609992,1749160232928,-207.4,0.0002172,2]
[364609994,1749160232941,-3265.2441264,0.0002172,2]
[364609996,1749160232954,-18662.90238428,0.00021734,2]
[364609999,1749160232965,-241.12,0.00021789,2]
[364610001,1749160232978,-894.27,0.00021789,2]
[364610003,1749160232991,-440.0,0.00021789,2]
[364610005,1749160233001,-440.0,0.00021789,2]
[364610007,1749160233013,-440.0,0.00021789,2]
[364610010,1749160233027,-440.0,0.0002179,2]
[364610012,1749160233038,-440.0,0.0002179,2]
[364610014,1749160233049,-267.02964554,0.0002179,2]
[364610016,1749160233062,-212.94059491,0.00022049,2]
[364610019,1749160233076,-894.27,0.00022063,2]
[364610021,1749160233088,-440.0,0.00022063,2]
[364610024,1749160233101,-440.0,0.00022063,2]
[364610026,1749160233112,-440.0,0.00022063,2]
[364610028,1749160233125,-393.96897861,0.00022064,2]
[364610029,1749160233137,-440.0,0.00022064,2]
[364610030,1749160233149,-442.97132567,0.00022064,2]
[364610031,1749160233164,-440.0,0.00022064,2]
[364610032,1749160233176,-440.0,0.00022064,2]
[364610033,1749160233188,-440.0,0.00022064,2]
[364610034,1749160233200,-440.0,0.00022064,2]
[364610035,1749160233212,-440.0,0.00022064,2]
[364610036,1749160233226,-160.0,0.00022321,2]
[364610037,1749160233239,-423.7637613,0.00022321,2]
[364610038,1749160233252,-894.27,0.00022337,2]
[364610039,1749160233264,-440.0,0.00022337,2]
[364610040,1749160233276,-440.0,0.00022337,2]
[364610041,1749160233287,-440.0,0.00022337,2]
[364610042,1749160233297,-440.0,0.00022338,2]
[364610043,1749160233308,-440.0,0.00022338,2]
[364610044,1749160233322,-440.0,0.00022338,2]
[364610045,1749160233333,-440.0,0.00022338,2]
[364610046,1749160233346,-440.0,0.00022338,2]
[364610047,1749160233359,-440.0,0.00022338,2]
[364610048,1749160233372,-199.735643,0.00022584,2]
[364610049,1749160233384,-199.735643,0.00022584,61]
[364610050,1749160233397,-440.0,0.00022611,2]
[364610051,1749160233409,-894.27,0.00022611,2]
[364610052,1749160233422,-440.0,0.00022611,2]
[364610053,1749160233436,-440.0,0.00022611,2]
[364610054,1749160233449,-440.0,0.00022611,2]
[364610055,1749160233462,-440.0,0.00022611,2]
[364610056,1749160233475,-440.0,0.00022612,2]
[364610057,1749160233488,-440.0,0.00022612,2]
[364610058,1749160233498,-440.0,0.00022612,2]
[364610059,1749160233510,-440.0,0.00022612,2]
[364610060,1749160233520,-440.0,0.00022612,2]
[364610061,1749160233530,-440.0,0.00022612,2]
[364610062,1749160233541,-440.0,0.00022769,2]
[364610063,1749160233552,-440.0,0.00022885,2]
[364610065,1749160233564,-492.44,0.00022885,2]
[364610066,1749160233577,-774.45,0.00022885,2]
[364610067,1749160233590,-455.11,0.00022885,2]
[364610068,1749160233602,-440.0,0.00022885,2]
[364610069,1749160233612,-440.0,0.00022885,2]
[364610070,1749160233623,-440.0,0.00022885,2]
[364610071,1749160233633,-440.0,0.00022885,2]
[364610072,1749160233644,-440.0,0.00022885,2]
[364610073,1749160233656,-440.0,0.00022885,2]
[364610074,1749160233666,-440.0,0.00022885,2]
[364610075,1749160233678,-440.0,0.00022885,2]
[364610076,1749160233690,-440.0,0.00022885,2]
[364610077,1749160233700,-894.27,0.00022885,2]
[364610078,1749160233713,-440.0,0.00022885,2]
[364610079,1749160233723,-440.0,0.00022885,2]
[364610080,1749160233734,-440.0,0.00022885,2]
[364610081,1749160233744,-440.0,0.00022885,2]
[364610082,1749160233755,-440.0,0.00022886,2]
[364610083,1749160233765,-440.0,0.00022886,2]
[364610084,1749160233775,-440.0,0.00022886,2]
[364610085,1749160233786,-440.0,0.00022886,2]
[364610086,1749160233796,-440.0,0.00022886,2]
[364610087,1749160233806,-440.0,0.00022886,2]
[364610088,1749160233817,-435.75596486,0.000229,8]
[364610089,1749160233827,-435.75596459,0.00022969,8]
[364610091,1749160233838,-435.75596459,0.00023038,8]
[364610093,1749160233848,-230.1,0.00023043,2]
[364610095,1749160233859,-215.0738,0.00023089,2]
[364610097,1749160233870,-435.75596459,0.00023107,8]
[364610099,1749160233882,-842.5625,0.0002314,2]
[364610102,1749160233894,-229.48950782,0.0002314,2]
[364610104,1749160233906,-440.0,0.00023159,2]
[364610106,1749160233917,-492.44,0.00023159,2]
[364610108,1749160233927,-774.45,0.00023159,2]
[364610110,1749160233939,-455.11,0.00023159,2]
[364610112,1749160233951,-440.0,0.00023159,2]
[364610115,1749160233962,-440.0,0.00023159,2]
[364610117,1749160233974,-440.0,0.00023159,2]
[364610118,1749160233986,-440.0,0.00023159,2]
[364610120,1749160234000,-440.0,0.00023159,2]
[364610122,1749160234011,-440.0,0.00023159,2]
[364610124,1749160234022,-440.0,0.00023159,2]
[364610126,1749160234034,-440.0,0.00023159,2]
[364610128,1749160234049,-440.0,0.00023159,2]
[364610129,1749160234060,-894.27,0.00023159,2]
[364610130,1749160234072,-440.0,0.00023159,2]
[364610131,1749160234083,-440.0,0.00023159,2]
[364610132,1749160234094,-458.55,0.00023159,2]
[364610133,1749160234105,-440.0,0.00023159,2]
[364610134,1749160234116,-440.0,0.0002316,2]
[364610135,1749160234127,-440.0,0.0002316,2]
[364610136,1749160234139,-440.0,0.0002316,2]
[364610137,1749160234150,-440.0,0.0002316,2]
[364610138,1749160234162,-440.0,0.0002316,2]
[364610139,1749160234173,-435.75596459,0.00023176,8]
[364610140,1749160234185,-667.7316524,0.00023244,2]
[364610141,1749160234196,-435.75596459,0.00023245,8]
[364610142,1749160234207,-303.45,0.00023266,10]
[364610143,1749160234218,-252.87,0.00023266,10]
[364610144,1749160234229,-5000.0,0.00023276,2]
[364610145,1749160234241,-4651.20464928,0.00023276,2]
[364610146,1749160234496,-348.79535072,0.00023276,2]
[364610147,1749160234507,-651.20464928,0.00023276,2]
[364610148,1749160234519,-4348.79535072,0.00023276,2]
[364610149,1749160234528,-5000.0,0.00023276,2]
[364610150,1749160234538,-5000.0,0.00023276,2]
[364610151,1749160234547,-435.75596459,0.00023314,9]
[364610152,1749160234557,-435.75596459,0.00023383,9]
[364610153,1749160234566,-476.9,0.00023433,2]
[364610154,1749160234576,-440.0,0.00023433,2]
[364610155,1749160234585,-440.0,0.00023433,2]
[364610156,1749160234595,-440.0,0.00023433,2]
[364610157,1749160234605,-440.0,0.00023433,2]
[364610158,1749160234614,-492.44,0.00023433,2]
[364610159,1749160234623,-774.45,0.00023433,2]
[364610160,1749160234633,-455.11,0.00023433,2]
[364610161,1749160234643,-440.0,0.00023433,2]
[364610162,1749160234652,-440.0,0.00023433,2]
[364610163,1749160234661,-440.0,0.00023433,2]
[364610164,1749160234671,-440.0,0.00023433,2]
[364610165,1749160234680,-440.0,0.00023433,2]
[364610166,1749160234691,-440.0,0.00023433,2]
[364610167,1749160234700,-440.0,0.00023433,2]
[364610168,1749160234710,-440.0,0.00023433,2]
[364610169,1749160234720,-440.0,0.00023433,2]
[364610170,1749160234729,-894.27,0.00023433,2]
[364610171,1749160234739,-440.0,0.00023433,2]
[364610172,1749160234748,-440.0,0.00023433,2]
[364610173,1749160234758,-435.75596459,0.00023452,9]
[364610174,1749160234767,-176.5641048,0.00023479,2]
[364610175,1749160234777,-158.5442955,0.00023479,2]
[364610176,1749160234787,-572.6068135,0.00023479,2]
[364610177,1749160234797,-435.75596459,0.00023521,9]
[364610178,1749160234806,-435.75596459,0.0002359,9]
[364610179,1749160234817,-435.75596459,0.00023659,9]
[364610180,1749160234826,-177.21,0.00023659,10]
[364610181,1749160234836,-440.0,0.00023707,2]
[364610182,1749160234846,-365.56,0.00023707,2]
[364610183,1749160234855,-440.0,0.00023707,2]
[364610184,1749160234865,-440.0,0.00023707,2]
[364610185,1749160234876,-492.44,0.00023707,2]
[364610186,1749160234887,-774.45,0.00023707,2]
[364610187,1749160234897,-455.11,0.00023707,2]
[364610188,1749160234906,-440.0,0.00023707,2]
[364610189,1749160234915,-440.0,0.00023707,2]
[364610190,1749160234924,-440.0,0.00023707,2]
[364610191,1749160234933,-440.0,0.00023707,2]
[364610192,1749160234943,-440.0,0.00023707,2]
[364610193,1749160234952,-440.0,0.00023707,2]
[364610194,1749160234961,-440.0,0.00023707,2]
[364610195,1749160234970,-440.0,0.00023707,2]
[364610196,1749160234980,-440.0,0.00023707,2]
[364610197,1749160234995,-894.27,0.00023707,2]
[364610198,1749160235004,-440.0,0.00023707,2]
[364610199,1749160235013,-440.0,0.00023707,2]
[364610200,1749160235023,-435.75596459,0.00023728,9]
[364610201,1749160235033,-435.75596459,0.00023797,9]
[364610202,1749160235042,-346.7516383,0.000238,3]
[364610203,1749160235052,-622.436136,0.00023821,3]
[364610204,1749160235062,-435.75596459,0.00023866,10]
[364610205,1749160235071,-435.75596459,0.00023934,10]
[364610206,1749160235081,-240.62,0.00023981,2]
[364610207,1749160235090,-336.26,0.00023981,2]
[364610208,1749160235100,-440.0,0.00023981,2]
[364610209,1749160235111,-492.44,0.00023981,2]
[364610210,1749160235121,-774.45,0.00023981,2]
[364610211,1749160235131,-455.11,0.00023981,2]
[364610212,1749160235142,-440.0,0.00023981,2]
[364610213,1749160235151,-440.0,0.00023981,2]
[364610214,1749160235161,-440.0,0.00023981,2]
[364610215,1749160235171,-440.0,0.00023981,2]
[364610216,1749160235181,-440.0,0.00023981,2]
[364610217,1749160235195,-440.0,0.00023981,2]
[364610218,1749160235205,-485.0,0.00023981,2]
[364610219,1749160235214,-440.0,0.00023981,2]
[364610220,1749160235224,-440.0,0.00023981,2]
[364610221,1749160235233,-894.27,0.00023981,2]
[364610222,1749160235244,-440.0,0.00023981,2]
[364610223,1749160235253,-440.0,0.00023981,2]
[364610224,1749160235263,-500.0,0.00024,2]
[364610225,1749160235272,-435.75596459,0.00024003,10]
[364610226,1749160235282,-710.28,0.00024035,7]
[364610227,1749160235291,-435.75596459,0.00024072,10]
[364610228,1749160235301,-158.8334,0.00024078,9]
[364610229,1749160235311,-435.75596459,0.00024141,10]
[364610230,1749160235321,-197.063,0.000242,6]
[364610231,1749160235330,-150.0,0.000242,30]
[364610232,1749160235340,-1227.41,0.000242,2]
[364610233,1749160235349,-435.75596459,0.0002421,10]
[364610234,1749160235358,-349.41602736,0.00024214,2]
[364610235,1749160235368,-710.28,0.00024235,3]
[364610236,1749160235377,-492.44,0.00024255,2]
[364610237,1749160235388,-774.45,0.00024255,2]